fUSD/lending_fUSD_20260530
["ID","MTS","AMOUNT","RATE_DAILY","PERIOD"]
[423448588,1780126554000,-4916.81132896,0.000209,30]
[423448595,1780126554000,-152.0,0.00023537,36]
[423448607,1780126554000,-1464.53,0.00025115,30]
[423448598,1780126554000,-152.0,0.00024332,39]
[423448599,1780126554000,-152.0,0.00024597,40]
[423448604,1780126554000,-1647.47271075,0.00025,30]
[423448606,1780126554000,-160.0,0.00025,30]
[423448603,1780126554000,-400.63324285,0.00025,60]
[423448605,1780126554000,-538.37892482,0.00025,30]
[423448601,1780126554000,-1138.10530309,0.00025,60]
[423448600,1780126554000,-152.0,0.00024862,41]
[423448597,1780126554000,-152.0,0.00024067,38]
[423448602,1780126554000,-2630.29506883,0.00025,30]
[423448616,1780126555000,-890.35,0.00026446,30]
[423448623,1780126555000,-2976.82,0.0002755,30]
[423448621,1780126555000,-1270.51858719,0.00027397,30]
[423448619,1780126555000,-429.90980042,0.000273,30]
[423448618,1780126555000,-429.90980044,0.000273,30]
[423448617,1780126555000,-152.0,0.00026453,47]
[423448615,1780126555000,-152.0,0.00026188,46]
[423448608,1780126555000,-1463.6,0.00025115,30]
[423448612,1780126555000,-1464.53,0.000258,30]
[423448611,1780126555000,-152.0,0.00025658,44]
[423448613,1780126555000,-1463.6,0.000258,30]
[423448622,1780126555000,-150.0,0.00027397,30]
[423448610,1780126555000,-152.0,0.00025393,43]
[423448609,1780126555000,-152.0,0.00025128,42]
[423448614,1780126555000,-152.0,0.00025923,45]
[423448626,1780126555000,-975.73,0.00027611,30]
[423448620,1780126555000,-497.2,0.00027319,30]
[423448627,1780126555000,-2913.77,0.00027665,30]
[423448640,1780126555000,-2742.36,0.00028033,30]
[423448624,1780126555000,-2742.36,0.0002755,30]
[423448641,1780126555000,-976.35,0.00028068,30]
[423448639,1780126555000,-2976.82,0.00028033,30]
[423448636,1780126555000,-976.35,0.00027977,30]
[423448635,1780126555000,-975.73,0.00027885,30]
[423448638,1780126555000,-2393.57376006,0.00028,30]
[423448634,1780126555000,-976.35,0.00027885,30]
[423448637,1780126555000,-975.73,0.00027977,30]
[423448633,1780126555000,-975.73,0.00027794,30]
[423448629,1780126555000,-201.225,0.00027671,30]
[423448631,1780126555000,-975.73,0.00027702,30]
[423448630,1780126555000,-976.35,0.00027702,30]
[423448628,1780126555000,-2746.24,0.00027665,30]
[423448625,1780126555000,-976.35,0.00027611,30]
[423448632,1780126555000,-976.35,0.00027794,30]
[423448650,1780126556000,-2900.0,0.00028204,60]
[423448658,1780126556000,-201.225,0.00028767,30]
[423448656,1780126556000,-2976.82,0.00028516,30]
[423448655,1780126556000,-150.0,0.00028438,120]
[423448653,1780126556000,-789.0809179,0.00028425,30]
[423448652,1780126556000,-444.2510982,0.00028297,120]
[423448651,1780126556000,-201.225,0.00028219,30]
[423448642,1780126556000,-975.73,0.00028068,30]
[423448648,1780126556000,-456.69860845,0.00028128,120]
[423448647,1780126556000,-152.0,0.00028109,120]
[423448646,1780126556000,-3137.0,0.00028082,120]
[423448643,1780126556000,-1000.0,0.00028082,120]
[423448645,1780126556000,-2287.0,0.00028082,120]
[423448644,1780126556000,-2500.0,0.00028082,120]
[423448659,1780126556000,-2198.0,0.00028767,120]
[423448649,1780126556000,-176.19,0.00028169,120]
[423448657,1780126556000,-2742.36,0.00028516,30]
[423448654,1780126556000,-274.44047785,0.00028438,120]
[423448661,1780126556000,-1001.69,0.000288,30]
[423448678,1780126556000,-2739.9,0.00029,30]
[423448677,1780126556000,-3126.42,0.00029,30]
[423448675,1780126556000,-150.0,0.00029,120]
[423448673,1780126556000,-2500.0,0.00029,30]
[423448674,1780126556000,-2740.11269223,0.00029,30]
[423448672,1780126556000,-2006.53,0.00029,120]
[423448671,1780126556000,-278.2,0.00029,120]
[423448669,1780126556000,-1001.69,0.00028971,30]
[423448676,1780126556000,-203.45916885,0.00029,120]
[423448670,1780126556000,-1001.69,0.00028996,30]
[423448668,1780126556000,-1001.69,0.00028947,30]
[423448662,1780126556000,-1001.69,0.00028824,30]
[423448663,1780126556000,-1001.69,0.00028849,30]
[423448660,1780126556000,-736.0,0.00028767,120]
[423448665,1780126556000,-1001.69,0.00028873,30]
[423448666,1780126556000,-1001.69,0.00028898,30]
[423448667,1780126556000,-1001.69,0.00028922,30]
[423448664,1780126556000,-176.19,0.00028855,120]
[423448694,1780126557000,-1001.69,0.00029314,30]
[423448693,1780126557000,-1001.69,0.0002929,30]
[423448692,1780126557000,-1001.69,0.00029265,30]
[423448690,1780126557000,-1001.69,0.00029216,30]
[423448691,1780126557000,-1001.69,0.00029241,30]
[423448687,1780126557000,-1001.69,0.00029167,30]
[423448689,1780126557000,-1001.69,0.00029192,30]
[423448688,1780126557000,-456.69860845,0.00029175,120]
[423448684,1780126557000,-1001.69,0.00029094,30]
[423448685,1780126557000,-1001.69,0.00029118,30]
[423448681,1780126557000,-1001.69,0.0002902,30]
[423448680,1780126557000,-2742.38,0.00029,30]
[423448682,1780126557000,-1001.69,0.00029045,30]
[423448679,1780126557000,-2976.91,0.00029,30]
[423448695,1780126557000,-1001.69,0.00029339,30]
[423448686,1780126557000,-1001.69,0.00029143,30]
[423448683,1780126557000,-1001.69,0.00029069,30]
[423448696,1780126557000,-1001.69,0.00029363,30]
[423448698,1780126557000,-1001.69,0.00029412,30]
[423448697,1780126557000,-1001.69,0.00029388,30]
[423448713,1780126557000,-1001.69,0.00029559,30]
[423448711,1780126557000,-1001.69,0.0002951,30]
[423448712,1780126557000,-1001.69,0.00029535,30]
[423448710,1780126557000,-1374.40396719,0.000295,42]
[423448709,1780126557000,-1349.3413089,0.000295,42]
[423448706,1780126557000,-868.61504793,0.000295,42]
[423448708,1780126557000,-1108.97817837,0.000295,42]
[423448704,1780126557000,-315.43385723,0.000295,42]
[423448707,1780126557000,-1021.41393054,0.000295,42]
[423448703,1780126557000,-1001.69,0.00029486,30]
[423448702,1780126557000,-176.19,0.00029484,120]
[423448701,1780126557000,-1001.69,0.00029461,30]
[423448700,1780126557000,-789.0809179,0.00029452,30]
[423448699,1780126557000,-1001.69,0.00029437,30]
[423448705,1780126557000,-668.42389388,0.000295,42]
[423448724,1780126558000,-1401.0,0.00029672,30]
[423448729,1780126558000,-872.0,0.00029672,30]
[423448728,1780126558000,-1194.0,0.00029672,30]
[423448726,1780126558000,-2440.0,0.00029672,30]
[423448727,1780126558000,-2516.0,0.00029672,30]
[423448725,1780126558000,-753.0,0.00029672,30]
[423448722,1780126558000,-162.0,0.0002967,30]
[423448714,1780126558000,-1001.69,0.00029584,30]
[423448720,1780126558000,-873.0,0.0002967,30]
[423448721,1780126558000,-3265.0,0.0002967,30]
[423448719,1780126558000,-848.0,0.0002967,30]
[423448731,1780126558000,-1001.69,0.00029706,30]
[423448718,1780126558000,-3546.0,0.0002967,30]
[423448717,1780126558000,-1001.69,0.00029657,30]
[423448715,1780126558000,-1001.69,0.00029608,30]
[423448723,1780126558000,-1170.0,0.00029672,30]
[423448730,1780126558000,-1001.69,0.00029682,30]
[423448716,1780126558000,-1001.69,0.00029633,30]
[423448734,1780126558000,-1001.69,0.0002978,30]
[423448732,1780126558000,-1001.69,0.00029731,30]
[423448750,1780126558000,-516.23044344,0.0003,30]
[423448749,1780126558000,-342.09068401,0.0003,120]
[423448747,1780126558000,-368.30440275,0.0003,30]
[423448746,1780126558000,-368.30440275,0.0003,30]
[423448744,1780126558000,-368.30440275,0.0003,30]
[423448745,1780126558000,-368.30440275,0.0003,30]
[423448741,1780126558000,-1001.69,0.00029927,30]
[423448748,1780126558000,-228.61382699,0.0003,120]
[423448742,1780126558000,-1001.69,0.00029951,30]
[423448737,1780126558000,-2900.0,0.00029848,60]
[423448740,1780126558000,-1001.69,0.00029902,30]
[423448739,1780126558000,-1001.69,0.00029878,30]
[423448738,1780126558000,-1001.69,0.00029853,30]
[423448736,1780126558000,-1001.69,0.00029829,30]
[423448735,1780126558000,-1001.69,0.00029804,30]
[423448733,1780126558000,-1001.69,0.00029755,30]
[423448743,1780126558000,-1001.69,0.00029976,30]
[423448760,1780126559000,-235.65666337,0.0003,30]
[423448762,1780126559000,-500.0,0.0003,120]
[423448761,1780126559000,-500.0,0.0003,120]
[423448759,1780126559000,-825.02878041,0.0003,120]
[423448758,1780126559000,-317.8981638,0.0003,120]
[423448752,1780126559000,-166.0,0.0003,120]
[423448757,1780126559000,-1030.64297803,0.0003,120]
[423448755,1780126559000,-170.31631977,0.0003,120]
[423448754,1780126559000,-526.76267861,0.0003,30]
[423448753,1780126559000,-2045.37873131,0.0003,120]
[423448763,1780126559000,-278.2,0.0003,120]
[423448756,1780126559000,-168.23998241,0.0003,120]
[423448765,1780126559000,-521.53,0.0003,120]
[423448751,1780126559000,-650.7916003,0.0003,120]
[423448764,1780126559000,-1220.0,0.0003,120]
[423448778,1780126559000,-2486.17397066,0.0003013,120]
[423448779,1780126559000,-1734.22715031,0.0003013,30]
[423448777,1780126559000,-1377.30077492,0.0003013,120]
[423448775,1780126559000,-751.06,0.00030082,120]
[423448776,1780126559000,-1018.0,0.000301,120]
[423448774,1780126559000,-530.54,0.00030082,120]
[423448766,1780126559000,-2000.0,0.0003,120]
[423448771,1780126559000,-215.58360558,0.0003,30]
[423448773,1780126559000,-1047.61960593,0.0003,30]
[423448770,1780126559000,-200.0,0.0003,120]
[423448769,1780126559000,-160.0,0.0003,120]
[423448767,1780126559000,-2500.0,0.0003,31]
[423448768,1780126559000,-150.0,0.0003,120]
[423448772,1780126559000,-209.12966642,0.0003,30]
[423448793,1780126560000,-230.0,0.00030137,120]
[423448792,1780126560000,-230.0,0.00030137,120]
[423448791,1780126560000,-230.0,0.00030137,120]
[423448789,1780126560000,-150.0,0.00030137,30]
[423448790,1780126560000,-150.0,0.00030137,30]
[423448787,1780126560000,-1000.0,0.00030137,30]
[423448785,1780126560000,-201.225,0.00030137,30]
[423448784,1780126560000,-347.02770364,0.00030135,120]
[423448786,1780126560000,-1000.0,0.00030137,30]
[423448783,1780126560000,-2356.4264116,0.0003013,120]
[423448781,1780126560000,-300.0,0.0003013,30]
[423448782,1780126560000,-968.51565575,0.0003013,30]
[423448794,1780126560000,-230.0,0.00030137,120]
[423448788,1780126560000,-151.08,0.00030137,30]
[423448780,1780126560000,-307.26231511,0.0003013,120]
[423448795,1780126560000,-600.0,0.00030137,120]
[423448799,1780126560000,-207.93001677,0.000302,120]
[423448796,1780126560000,-432.65,0.00030137,43]
[423448809,1780126560000,-1170.0,0.00030672,30]
[423448810,1780126560000,-1401.0,0.00030672,30]
[423448808,1780126560000,-162.0,0.0003067,30]
[423448807,1780126560000,-3265.0,0.0003067,30]
[423448806,1780126560000,-873.0,0.0003067,30]
[423448803,1780126560000,-456.69860845,0.00030538,120]
[423448811,1780126560000,-753.0,0.00030672,30]
[423448804,1780126560000,-3546.0,0.0003067,30]
[423448802,1780126560000,-150.0,0.000305,120]
[423448800,1780126560000,-600.0,0.00030411,120]
[423448801,1780126560000,-789.0809179,0.00030479,30]
[423448798,1780126560000,-176.19,0.00030142,120]
[423448797,1780126560000,-187.95218471,0.00030137,120]
[423448805,1780126560000,-848.0,0.0003067,30]
[423448822,1780126561000,-283.61792291,0.00031,120]
[423448823,1780126561000,-278.2,0.00031,120]
[423448820,1780126561000,-209.12966642,0.000309,30]
[423448821,1780126561000,-1047.61960593,0.000309,30]
[423448819,1780126561000,-215.58360558,0.000309,30]
[423448818,1780126561000,-250.0,0.000308,30]
[423448815,1780126561000,-872.0,0.00030672,30]
[423448817,1780126561000,-176.19,0.00030799,120]
[423448813,1780126561000,-2516.0,0.00030672,30]
[423448814,1780126561000,-1194.0,0.00030672,30]
[423448812,1780126561000,-2440.0,0.00030672,30]
[423448824,1780126561000,-2500.0,0.00031,32]
[423448816,1780126561000,-3134.77144865,0.000307,120]
[423448825,1780126561000,-4882.12113343,0.00031,30]
[423448840,1780126561000,-2913.77,0.00031556,30]
[423448827,1780126561000,-199.0,0.00031,120]
[423448841,1780126561000,-2746.24,0.00031556,30]
[423448839,1780126561000,-4274.87858719,0.00031507,30]
[423448837,1780126561000,-600.0,0.00031507,120]
[423448838,1780126561000,-600.0,0.00031507,120]
[423448836,1780126561000,-1000.0,0.00031507,40]
[423448835,1780126561000,-1000.0,0.00031507,40]
[423448826,1780126561000,-150.0,0.00031,120]
[423448834,1780126561000,-150.0,0.000315,120]
[423448830,1780126561000,-500.0,0.000314,120]
[423448832,1780126561000,-176.19,0.00031457,120]
[423448831,1780126561000,-1222.98,0.00031433,30]
[423448828,1780126561000,-209.12966642,0.00031,120]
[423448829,1780126561000,-348.99946378,0.000314,30]
[423448833,1780126561000,-2900.0,0.00031492,60]
[423448855,1780126562000,-209.12966642,0.000318,30]
[423448854,1780126562000,-215.58360558,0.000318,30]
[423448853,1780126562000,-872.0,0.00031672,30]
[423448850,1780126562000,-2440.0,0.00031672,30]
[423448852,1780126562000,-1194.0,0.00031672,30]
[423448851,1780126562000,-2516.0,0.00031672,30]
[423448846,1780126562000,-162.0,0.0003167,30]
[423448848,1780126562000,-1401.0,0.00031672,30]
[423448847,1780126562000,-1170.0,0.00031672,30]
[423448844,1780126562000,-873.0,0.0003167,30]
[423448845,1780126562000,-3265.0,0.0003167,30]
[423448843,1780126562000,-848.0,0.0003167,30]
[423448856,1780126562000,-173.78364264,0.000318,30]
[423448849,1780126562000,-753.0,0.00031672,30]
[423448842,1780126562000,-3546.0,0.0003167,30]
[423448857,1780126562000,-178.087383,0.00032,120]
[423448859,1780126562000,-1312.66445638,0.00032,30]
[423448858,1780126562000,-162.08,0.00032,120]
[423448874,1780126562000,-1000.0,0.00032232,90]
[423448873,1780126562000,-1000.0,0.00032232,120]
[423448872,1780126562000,-368.30440275,0.00032222,30]
[423448871,1780126562000,-176.19,0.00032115,120]
[423448869,1780126562000,-1047.61960593,0.00032,120]
[423448867,1780126562000,-1013.58,0.00032,120]
[423448870,1780126562000,-456.69860845,0.00032063,120]
[423448866,1780126562000,-2500.0,0.00032,33]
[423448865,1780126562000,-2000.0,0.00032,120]
[423448863,1780126562000,-1054.0,0.00032,120]
[423448864,1780126562000,-162.0,0.00032,120]
[423448862,1780126562000,-2004.53,0.00032,120]
[423448861,1780126562000,-278.2,0.00032,120]
[423448860,1780126562000,-302.78,0.00032,120]
[423448868,1780126562000,-150.0,0.00032,120]
[423448884,1780126563000,-1170.0,0.00032672,30]
[423448889,1780126563000,-1194.0,0.00032672,30]
[423448887,1780126563000,-2440.0,0.00032672,30]
[423448886,1780126563000,-753.0,0.00032672,30]
[423448885,1780126563000,-1401.0,0.00032672,30]
[423448883,1780126563000,-162.0,0.0003267,30]
[423448880,1780126563000,-848.0,0.0003267,30]
[423448888,1780126563000,-2516.0,0.00032672,30]
[423448881,1780126563000,-873.0,0.0003267,30]
[423448878,1780126563000,-928.82,0.00032603,120]
[423448879,1780126563000,-3546.0,0.0003267,30]
[423448876,1780126563000,-150.0,0.000325,120]
[423448877,1780126563000,-3833.61244487,0.00032534,30]
[423448875,1780126563000,-1000.0,0.00032232,60]
[423448882,1780126563000,-3265.0,0.0003267,30]
[423448890,1780126563000,-872.0,0.00032672,30]
[423448902,1780126563000,-800.0,0.00032877,30]
[423448892,1780126563000,-1949.6427,0.000328,30]
[423448905,1780126563000,-800.0,0.00032877,30]
[423448904,1780126563000,-800.0,0.00032877,30]
[423448903,1780126563000,-800.0,0.00032877,30]
[423448906,1780126563000,-800.0,0.00032877,30]
[423448907,1780126563000,-800.0,0.00032877,30]
[423448900,1780126563000,-800.0,0.00032877,30]
[423448901,1780126563000,-800.0,0.00032877,30]
[423448891,1780126563000,-176.19,0.00032772,120]
[423448898,1780126563000,-800.0,0.00032877,30]
[423448897,1780126563000,-800.0,0.00032877,30]
[423448894,1780126563000,-405.70641793,0.0003287,120]
[423448896,1780126563000,-286.70843177,0.00032877,50]
[423448895,1780126563000,-2115.15549942,0.00032876,30]
[423448893,1780126563000,-928.82,0.00032849,120]
[423448899,1780126563000,-800.0,0.00032877,30]
[423448922,1780126564000,-800.0,0.00032877,30]
[423448921,1780126564000,-800.0,0.00032877,30]
[423448919,1780126564000,-800.0,0.00032877,30]
[423448918,1780126564000,-800.0,0.00032877,30]
[423448916,1780126564000,-800.0,0.00032877,30]
[423448915,1780126564000,-800.0,0.00032877,30]
[423448911,1780126564000,-800.0,0.00032877,30]
[423448914,1780126564000,-800.0,0.00032877,30]
[423448924,1780126564000,-800.0,0.00032877,30]
[423448913,1780126564000,-800.0,0.00032877,30]
[423448912,1780126564000,-800.0,0.00032877,30]
[423448910,1780126564000,-800.0,0.00032877,30]
[423448908,1780126564000,-800.0,0.00032877,30]
[423448909,1780126564000,-800.0,0.00032877,30]
[423448917,1780126564000,-800.0,0.00032877,30]
[423448923,1780126564000,-800.0,0.00032877,30]
[423448920,1780126564000,-800.0,0.00032877,30]
[423448927,1780126564000,-830.0,0.00032877,30]
[423448941,1780126564000,-600.0,0.00032877,120]
[423448939,1780126564000,-150.0,0.00032877,30]
[423448940,1780126564000,-150.0,0.00032877,120]
[423448938,1780126564000,-150.0,0.00032877,30]
[423448935,1780126564000,-1000.0,0.00032877,120]
[423448937,1780126564000,-550.0,0.00032877,120]
[423448936,1780126564000,-1000.0,0.00032877,120]
[423448942,1780126564000,-600.0,0.00032877,120]
[423448933,1780126564000,-500.0,0.00032877,30]
[423448934,1780126564000,-672.0,0.00032877,30]
[423448926,1780126564000,-800.0,0.00032877,30]
[423448929,1780126564000,-500.0,0.00032877,30]
[423448925,1780126564000,-831.0,0.00032877,30]
[423448930,1780126564000,-500.0,0.00032877,30]
[423448931,1780126564000,-500.0,0.00032877,30]
[423448932,1780126564000,-500.0,0.00032877,30]
[423448928,1780126564000,-500.0,0.00032877,30]
[423448958,1780126565000,-150.0,0.00033,120]
[423448955,1780126565000,-2500.0,0.00033,34]
[423448954,1780126565000,-5260.83,0.00033,30]
[423448952,1780126565000,-500.0,0.00033,120]
[423448953,1780126565000,-162.0,0.00033,120]
[423448951,1780126565000,-278.2,0.00033,120]
[423448950,1780126565000,-479.29458867,0.00033,30]
[423448945,1780126565000,-325.44992038,0.000329,120]
[423448948,1780126565000,-2844.66,0.00033,30]
[423448946,1780126565000,-872.25866182,0.000329,120]
[423448944,1780126565000,-1092.32,0.000329,120]
[423448943,1780126565000,-432.65,0.00032877,120]
[423448957,1780126565000,-215.81909158,0.00033,30]
[423448949,1780126565000,-176.53739484,0.00033,60]
[423448947,1780126565000,-154.35513482,0.000329,120]
[423448956,1780126565000,-369.0,0.00033,120]
[423448959,1780126565000,-199.0,0.00033,120]
[423448975,1780126565000,-873.0,0.0003367,30]
[423448974,1780126565000,-848.0,0.0003367,30]
[423448973,1780126565000,-3546.0,0.0003367,30]
[423448972,1780126565000,-928.82,0.00033589,120]
[423448971,1780126565000,-456.69860845,0.00033587,120]
[423448969,1780126565000,-4579.42244487,0.00033562,30]
[423448970,1780126565000,-1044.03,0.00033572,30]
[423448960,1780126565000,-1653.30283268,0.00033,120]
[423448965,1780126565000,-928.82,0.00033342,120]
[423448967,1780126565000,-500.1,0.00033362,31]
[423448966,1780126565000,-500.1,0.00033362,31]
[423448964,1780126565000,-176.19,0.00033293,120]
[423448962,1780126565000,-2900.0,0.00033136,60]
[423448963,1780126565000,-543.97547916,0.00033195,31]
[423448961,1780126565000,-928.82,0.00033096,120]
[423448968,1780126565000,-500.1,0.00033362,31]
[423448991,1780126566000,-500.0,0.00033899,30]
[423448988,1780126566000,-500.0,0.00033899,30]
[423448989,1780126566000,-500.0,0.00033899,30]
[423448987,1780126566000,-500.0,0.00033899,30]
[423448985,1780126566000,-1402.09648605,0.000338,120]
[423448986,1780126566000,-928.82,0.00033836,120]
[423448983,1780126566000,-1194.0,0.00033672,30]
[423448980,1780126566000,-753.0,0.00033672,30]
[423448982,1780126566000,-2516.0,0.00033672,30]
[423448981,1780126566000,-2440.0,0.00033672,30]
[423448979,1780126566000,-1401.0,0.00033672,30]
[423448978,1780126566000,-1170.0,0.00033672,30]
[423448977,1780126566000,-170.16897016,0.0003367,30]
[423448990,1780126566000,-500.0,0.00033899,30]
[423448984,1780126566000,-872.0,0.00033672,30]
[423448976,1780126566000,-3265.0,0.0003367,30]
[423448993,1780126566000,-500.0,0.00033899,30]
[423448994,1780126566000,-500.0,0.00033899,30]
[423448992,1780126566000,-500.0,0.00033899,30]
[423449009,1780126566000,-2844.66,0.00034,30]
[423449007,1780126566000,-500.0,0.00033899,30]
[423449008,1780126566000,-500.0,0.00033902,30]
[423449006,1780126566000,-500.0,0.00033899,30]
[423449004,1780126566000,-500.0,0.00033899,30]
[423449003,1780126566000,-500.0,0.00033899,30]
[423449005,1780126566000,-500.0,0.00033899,30]
[423449001,1780126566000,-500.0,0.00033899,30]
[423448999,1780126566000,-500.0,0.00033899,30]
[423449000,1780126566000,-500.0,0.00033899,30]
[423448998,1780126566000,-500.0,0.00033899,30]
[423448995,1780126566000,-500.0,0.00033899,30]
[423448997,1780126566000,-500.0,0.00033899,30]
[423448996,1780126566000,-500.0,0.00033899,30]
[423449002,1780126566000,-500.0,0.00033899,30]
[423449020,1780126567000,-512.815544,0.00034081,120]
[423449024,1780126567000,-500.0,0.00034246,120]
[423449025,1780126567000,-500.0,0.00034246,120]
[423449021,1780126567000,-928.82,0.00034082,120]
[423449022,1780126567000,-330.0,0.00034091,34]
[423449023,1780126567000,-600.0,0.00034212,120]
[423449019,1780126567000,-2252.6,0.00034066,30]
[423449011,1780126567000,-278.2,0.00034,120]
[423449018,1780126567000,-176.19,0.00034033,120]
[423449016,1780126567000,-162.0,0.00034,120]
[423449014,1780126567000,-2500.0,0.00034,35]
[423449015,1780126567000,-500.0,0.00034,120]
[423449013,1780126567000,-5260.83,0.00034,30]
[423449012,1780126567000,-2000.0,0.00034,120]
[423449010,1780126567000,-185.11448938,0.00034,30]
[423449017,1780126567000,-150.0,0.00034,120]
[423449026,1780126567000,-500.0,0.00034246,120]
[423449033,1780126567000,-600.0,0.00034247,120]
[423449029,1780126567000,-518.87459671,0.00034246,120]
[423449044,1780126567000,-928.82,0.00034575,120]
[423449042,1780126567000,-2859.89,0.00034544,60]
[423449043,1780126567000,-1845.8,0.00034544,60]
[423449041,1780126567000,-1877.07,0.00034544,60]
[423449038,1780126567000,-368.30440275,0.00034444,30]
[423449037,1780126567000,-772.03,0.000344,60]
[423449039,1780126567000,-530.54,0.00034521,120]
[423449027,1780126567000,-500.0,0.00034246,120]
[423449035,1780126567000,-2000.0,0.00034247,30]
[423449036,1780126567000,-928.82,0.00034329,120]
[423449034,1780126567000,-600.0,0.00034247,120]
[423449032,1780126567000,-600.0,0.00034247,120]
[423449031,1780126567000,-1000.0,0.00034247,120]
[423449030,1780126567000,-540.36,0.00034247,120]
[423449028,1780126567000,-500.0,0.00034246,120]
[423449040,1780126567000,-751.06,0.00034521,120]
[423449058,1780126568000,-176.19,0.00034773,120]
[423449056,1780126568000,-1194.0,0.00034672,30]
[423449057,1780126568000,-872.0,0.00034672,30]
[423449055,1780126568000,-2516.0,0.00034672,30]
[423449054,1780126568000,-2440.0,0.00034672,30]
[423449052,1780126568000,-1401.0,0.00034672,30]
[423449051,1780126568000,-1170.0,0.00034672,30]
[423449048,1780126568000,-848.0,0.0003467,30]
[423449049,1780126568000,-873.0,0.0003467,30]
[423449050,1780126568000,-3265.0,0.0003467,30]
[423449046,1780126568000,-1073.83,0.0003459,30]
[423449047,1780126568000,-3546.0,0.0003467,30]
[423449045,1780126568000,-3133.5909179,0.00034589,30]
[423449060,1780126568000,-928.82,0.00034822,120]
[423449053,1780126568000,-753.0,0.00034672,30]
[423449059,1780126568000,-2900.0,0.0003478,60]
[423449061,1780126568000,-1001.0,0.00034849,120]
[423449063,1780126568000,-1428.37700415,0.0003488,120]
[423449076,1780126568000,-500.0,0.00035,120]
[423449075,1780126568000,-2005.53,0.00035,120]
[423449074,1780126568000,-400.0,0.00035,120]
[423449073,1780126568000,-278.2,0.00035,120]
[423449072,1780126568000,-1251.9540024,0.00035,120]
[423449070,1780126568000,-2317.45930943,0.00035,30]
[423449071,1780126568000,-150.0,0.00035,60]
[423449077,1780126568000,-161.75,0.00035,120]
[423449069,1780126568000,-701.84765066,0.00035,120]
[423449066,1780126568000,-2844.66,0.00035,30]
[423449067,1780126568000,-303.5,0.00035,120]
[423449065,1780126568000,-2000.0,0.0003499,30]
[423449062,1780126568000,-2000.0,0.00034877,30]
[423449064,1780126568000,-456.69860845,0.00034971,120]
[423449068,1780126568000,-541.48867764,0.00035,30]
[423449090,1780126569000,-2154.503,0.000352,30]
[423449088,1780126569000,-928.82,0.00035068,120]
[423449089,1780126569000,-2684.58,0.0003513,69]
[423449087,1780126569000,-2317.36,0.00035027,120]
[423449085,1780126569000,-199.0,0.00035,120]
[423449086,1780126569000,-200.0,0.00035,120]
[423449081,1780126569000,-5199.5533489,0.00035,30]
[423449083,1780126569000,-500.27224662,0.00035,120]
[423449082,1780126569000,-200.46599006,0.00035,120]
[423449080,1780126569000,-200.0,0.00035,60]
[423449079,1780126569000,-2500.0,0.00035,36]
[423449078,1780126569000,-5260.83,0.00035,30]
[423449091,1780126569000,-2154.503,0.000352,30]
[423449084,1780126569000,-150.0,0.00035,120]
[423449094,1780126569000,-176.19,0.00035402,120]
[423449095,1780126569000,-234.375,0.00035418,120]
[423449092,1780126569000,-2154.5,0.000352,30]